bitfinex-derivatives/quotes_ETHF0:USTF0_20250902
["timestamp","ask_amount","ask_price","bid_price","bid_amount"]
[1756782188006,0.286,4359.9,4359.7,0.251]
[1756782188198,3.333,4360.5,4359.6,40.8]
[1756782188397,0.286,4360.4,4359.7,0.251]
[1756782189099,0.286,4359.8,4359.6,0.251]
[1756782190003,0.251,4360.8,4359.6,3.53642408]
[1756782190200,0.286,4360.7,4359.7,0.22934]
[1756782190506,0.286,4361.2,4360.5,3.28542408]
[1756782190802,3.2078,4361.3,4360.4,3.2078]
[1756782191099,3.2078,4361.3,4360.6,0.251]
[1756782191100,0.286,4361.2,4360.6,0.251]
[1756782191300,3.2078,4361.3,4361.1,3.28542408]
[1756782191501,3.2078,4361.3,4361.1,3.53642408]
[1756782192298,3.2078,4361.3,4360.6,3.28542408]
[1756782192504,3.2078,4361.3,4360.7,0.251]
[1756782192801,0.2905,4361.6,4361.1,3.2078]
[1756782193109,0.18867611,4361.5,4361.2,0.251]
[1756782193406,0.2905,4361.8,4361.2,0.251]
[1756782193603,0.2905,4361.6,4361.2,0.251]
[1756782193903,3.333,4362.0,4361.3,0.251]
[1756782193904,0.2905,4361.9,4361.3,0.251]
[1756782194108,0.18849639,4361.8,4361.3,0.251]
[1756782194305,0.2905,4361.6,4361.3,0.251]
[1756782194807,0.2905,4361.9,4361.3,0.251]
[1756782195007,0.1252,4362.0,4361.3,0.251]
[1756782195008,0.188341,4361.8,4361.4,40.8]
[1756782195310,0.2905,4362.0,4361.5,0.251]
[1756782195605,0.18824061,4361.9,4361.5,0.251]
[1756782195797,3.2078,4362.2,4361.5,0.251]
[1756782195998,0.2905,4362.0,4361.5,0.251]
[1756782196199,0.18823848,4361.9,4361.4,40.8]
[1756782196399,0.1231,4362.0,4361.5,0.251]
[1756782196608,0.47865302,4361.9,4361.5,0.251]
[1756782196797,0.1231,4362.0,4361.5,0.251]
[1756782196996,0.2905,4361.8,4361.4,40.8]
[1756782197202,0.4136,4361.5,4361.4,41.051]
[1756782198112,0.4136,4361.5,4361.4,40.8]
[1756782198613,0.1231,4362.0,4361.4,41.051]
[1756782198811,0.47852562,4361.9,4361.4,41.051]
[1756782199013,0.2905,4362.1,4361.4,41.051]
[1756782199207,0.1880036,4362.0,4361.4,41.051]
[1756782199509,0.2905,4362.1,4361.4,40.8]
[1756782199711,0.2905,4361.9,4361.5,0.251]
[1756782200503,0.2905,4362.4,4361.5,0.251]
[1756782200706,0.2905,4362.2,4361.4,40.8]
[1756782200909,0.2905,4361.9,4361.4,40.8]
[1756782201305,0.1231,4362.0,4361.5,0.251]
[1756782201713,0.2905,4361.9,4361.5,0.251]
[1756782201907,0.1231,4362.0,4361.5,0.251]
[1756782202105,0.1231,4362.0,4361.6,0.251]
[1756782202810,0.2905,4361.9,4361.6,0.251]
[1756782203107,0.2905,4361.9,4361.7,0.25]
[1756782203312,0.1231,4362.0,4361.7,0.25]
[1756782204017,0.1231,4362.0,4361.4,40.8]
[1756782204215,0.2905,4361.9,4361.5,0.25]
[1756782204509,0.1231,4362.0,4361.4,40.8]
[1756782204716,0.4136,4361.5,4361.4,40.8]
[1756782204913,0.4136,4361.5,4361.4,41.05]
[1756782206812,0.4136,4361.5,4361.4,40.8]
[1756782207012,0.4136,4361.5,4361.4,41.05]
[1756782207717,0.4136,4361.5,4361.4,40.8]
[1756782208712,0.1231,4361.0,4359.3,7.1078]
[1756782209020,0.2905,4359.9,4359.5,0.25]
[1756782209217,0.2905,4359.9,4359.6,40.8]
[1756782209408,0.1231,4360.0,4359.6,40.8]
[1756782209613,0.18854023,4359.9,4359.6,40.8]
[1756782209818,0.2905,4360.6,4359.8,3.2078]
[1756782210018,0.18849627,4360.5,4359.9,0.25]
[1756782210319,0.18852634,4360.4,4359.9,0.25]
[1756782210620,0.2905,4360.4,4360.0,41.05]
[1756782210920,0.2905,4360.2,4360.0,41.05]
[1756782211218,0.1231,4360.5,4360.0,41.05]
[1756782211413,0.19737097,4360.4,4360.1,0.25]
[1756782211621,0.2905,4360.2,4360.1,0.25]
[1756782211816,0.19736903,4360.2,4360.0,40.8]
[1756782212016,0.2905,4360.2,4360.1,0.25]
[1756782212213,0.48808078,4360.2,4360.1,0.25]
[1756782213109,0.48808078,4360.2,4360.0,40.8]
[1756782213110,0.2905,4360.1,4360.0,40.8]
[1756782213414,0.48808078,4360.1,4360.0,41.05]
[1756782214117,0.48808078,4360.1,4360.0,40.8]
[1756782214417,0.48808078,4360.1,4360.0,41.05]
[1756782215522,0.48808078,4360.1,4360.0,40.8]
[1756782215820,0.48808078,4360.1,4360.0,41.05]
[1756782216816,0.48808078,4360.1,4360.0,0.25]
[1756782217023,0.89538078,4360.1,4360.0,0.25]
[1756782217323,0.2905,4359.9,4359.5,40.8]
[1756782217525,0.2905,4359.6,4359.5,40.8]
[1756782217723,0.48808078,4359.6,4359.5,41.05]
[1756782218221,0.48808078,4359.6,4359.5,40.8]
[1756782218416,0.48808078,4359.6,4359.5,41.05]
[1756782218611,0.4073,4359.4,4359.3,1.21502742]
[1756782218811,0.1231,4359.0,4358.5,3.2078]
[1756782219019,0.2905,4358.8,4358.5,3.2078]
[1756782219218,0.19758078,4358.7,4358.6,7.51484408]
[1756782219418,0.19758078,4358.7,4358.6,9.3928415]
[1756782219627,0.1146,4358.9,4358.6,8.17781408]
[1756782219825,3.2078,4360.2,4358.8,0.41295]
[1756782220125,0.19836808,4360.1,4359.4,6.49322408]
[1756782220318,0.2905,4359.9,4359.5,0.25]
[1756782220518,0.48886808,4359.8,4359.6,40.8]
[1756782220819,0.48886808,4359.7,4359.6,40.8]
[1756782221025,0.48886808,4359.7,4359.6,41.05]
[1756782221525,0.19836808,4359.7,4359.6,41.05]
[1756782221720,0.19836808,4359.7,4359.6,40.8]
[1756782222025,0.19828563,4359.7,4359.6,41.05]
[1756782224317,0.49208563,4359.7,4359.6,41.05]
[1756782224723,0.49208563,4359.7,4359.6,40.8]
[1756782224925,0.49208563,4359.7,4359.6,41.05]
[1756782225925,0.49208563,4359.7,4359.6,40.8]
[1756782226123,0.49208563,4359.7,4359.6,41.05]
[1756782226320,4.19828563,4359.7,4358.9,3.2078]
[1756782226523,0.19828563,4359.6,4358.9,3.2078]
[1756782226828,0.1913,4359.1,4359.0,0.25]
[1756782227419,0.19828563,4359.1,4359.0,0.25]
[1756782227625,4.19828563,4359.1,4358.3,3.2078]
[1756782227819,0.19828563,4359.0,4358.3,3.4578]
[1756782228022,0.19828563,4358.9,4358.4,40.8]
[1756782228219,0.19828563,4358.8,4358.6,3.2078]
[1756782228426,0.2938,4359.4,4358.7,0.25]
[1756782228618,0.19827124,4359.3,4358.7,0.25]
[1756782228820,0.19827124,4359.2,4358.8,0.25]
[1756782229025,0.1239,4360.0,4358.9,40.8]
[1756782229026,0.19827124,4359.1,4358.9,40.8]
[1756782229221,3.2078,4359.9,4358.9,40.8]
[1756782229222,3.2078,4359.9,4359.0,0.25]
[1756782229420,0.1239,4359.0,4358.9,40.8]
[1756782229623,0.61202027,4359.0,4358.6,3.4578]
[1756782229824,0.2938,4358.8,4358.6,3.4578]
[1756782230022,0.1239,4359.5,4358.6,3.4578]
[1756782230023,0.19432027,4358.7,4358.6,3.4578]
[1756782230629,0.2938,4359.2,4358.6,3.4578]
[1756782230828,0.2938,4359.0,4358.6,3.4578]
[1756782231030,0.19432027,4358.9,4358.6,3.4578]
[1756782231230,0.19432027,4358.8,4358.6,3.4578]
[1756782231421,0.48812027,4358.7,4358.6,3.4578]
[1756782231624,0.19432027,4358.7,4358.6,3.4578]
[1756782231825,0.19432027,4359.0,4358.6,3.4578]
[1756782232018,0.19432027,4358.9,4358.6,3.4578]
[1756782232225,0.2938,4359.3,4358.6,3.4578]
[1756782232424,0.19437112,4359.2,4358.6,3.4578]
[1756782232631,0.19437112,4359.1,4358.6,3.4578]
[1756782232833,0.48815735,4359.0,4358.6,3.4578]
[1756782233037,0.19435735,4358.9,4358.7,0.25]
[1756782233233,0.19435735,4358.9,4358.6,3.2078]
[1756782233234,0.2938,4358.7,4358.6,3.2078]
[1756782233427,0.19435735,4358.7,4358.6,3.4578]
[1756782233628,0.38565735,4359.0,4358.6,3.4578]
[1756782233835,0.2938,4358.8,4358.6,3.4578]
[1756782234133,0.19435735,4358.7,4358.6,3.4578]
[1756782234626,0.19435735,4359.1,4358.6,3.4578]
[1756782234834,0.19435735,4359.0,4358.6,3.4578]
[1756782235030,0.19435735,4358.9,4358.6,3.2078]
[1756782235222,0.48815735,4358.8,4358.7,0.25]
[1756782236032,0.2938,4358.7,4358.6,3.2078]
[1756782236334,0.48815735,4358.7,4358.6,3.4578]
[1756782237331,0.67945735,4358.7,4358.6,45.4665174]
[1756782237530,0.67945735,4358.7,4358.6,45.2165174]
[1756782237722,0.67945735,4358.7,4358.6,44.2578]
[1756782238834,0.67945735,4358.7,4358.6,44.0078]
[1756782239324,0.67945735,4358.7,4358.6,41.05]
[1756782240026,0.19435735,4358.7,4358.6,45.4665174]
[1756782240629,0.48815735,4358.7,4358.6,45.2165174]
[1756782240828,0.19435735,4358.7,4358.6,45.4665174]
[1756782241426,0.48815735,4358.7,4358.6,44.2578]
[1756782241630,0.2938,4358.7,4358.6,44.2578]
[1756782241832,0.50910721,4358.7,4358.6,44.2578]
[1756782242431,0.50910721,4358.7,4358.6,44.0078]
[1756782242629,0.50912734,4358.7,4358.6,44.0078]
[1756782242830,0.89132734,4358.7,4358.6,3.4578]
[1756782243331,0.2938,4358.6,4358.5,40.8]
[1756782243537,0.50912734,4358.6,4358.5,41.05]
[1756782243934,0.50912734,4358.6,4358.5,40.8]
[1756782244139,0.50912734,4358.6,4358.5,41.05]
[1756782244437,0.89132734,4358.6,4358.5,0.25]
[1756782244739,0.609,4358.5,4358.4,0.25]
[1756782244939,1.01522734,4358.5,4358.4,0.25]
[1756782245137,0.5061,4358.5,4358.2,40.8]
[1756782245336,0.5061,4358.5,4358.4,0.25]
[1756782245534,0.72146302,4358.5,4358.4,0.25]
[1756782246036,0.3822,4358.1,4358.0,1.2124461]
[1756782246228,0.3822,4357.7,4357.3,1.2124461]
[1756782246538,0.2938,4357.5,4357.4,41.05]
[1756782246737,0.21536302,4357.5,4357.4,44.48728]
[1756782246938,3.2078,4358.6,4357.5,0.41308]
[1756782247239,3.2078,4358.6,4358.4,2.85416514]
[1756782247538,3.2078,4358.6,4358.5,0.25]
[1756782247733,3.2078,4358.6,4358.5,1.46348267]
[1756782248433,3.2078,4358.6,4358.5,42.26348267]
[1756782249242,3.5016,4358.6,4358.5,42.26348267]
[1756782249442,3.2078,4358.6,4358.5,42.26348267]
[1756782250439,3.2078,4358.6,4358.5,41.05]
[1756782250636,3.5016,4358.6,4358.5,40.8]
[1756782250833,3.5016,4358.6,4358.5,41.05]
[1756782251136,0.2938,4358.6,4358.5,40.8]
[1756782251340,0.2938,4358.6,4358.5,41.05]
[1756782251633,0.2938,4358.6,4358.5,40.8]
[1756782252237,0.2938,4358.6,4358.5,41.05]
[1756782253231,4.2938,4358.6,4358.5,40.8]
[1756782253742,0.4856,4358.2,4358.1,1.21409291]
[1756782254039,0.4856,4358.2,4358.1,1.46409291]
[1756782254238,0.4856,4358.2,4358.1,42.2649494]
[1756782255130,0.4856,4358.2,4358.1,41.05]
[1756782255334,0.2949,4358.8,4358.1,41.05]
[1756782255633,0.2949,4358.7,4358.1,42.26515555]
[1756782255837,3.5027,4358.8,4358.2,2.85416514]
[1756782256039,0.4856,4359.2,4358.4,4.42295555]
[1756782256234,0.4856,4359.2,4358.5,1.46515555]
[1756782256643,0.2949,4359.6,4359.0,3.2078]
[1756782256845,3.3317,4360.0,4359.1,0.25]
[1756782257043,0.2949,4359.9,4359.1,0.25]
[1756782257245,0.2949,4359.9,4359.1,1.46515555]
[1756782257541,0.2949,4359.9,4359.3,1.21515555]
[1756782257734,0.2949,4359.9,4359.4,0.25]
[1756782258139,0.4856,4359.4,4359.3,1.21515555]
[1756782258344,0.6777,4359.4,4359.3,0.25]
[1756782258545,0.2949,4359.3,4359.2,1.21515555]
[1756782258744,0.4856,4359.3,4359.2,1.46515555]
[1756782258946,0.86900318,4359.3,4359.2,1.46515555]
[1756782259142,0.48620318,4359.3,4359.2,1.46515555]
[1756782259344,0.19130318,4359.3,4359.2,0.25]
[1756782259745,0.2949,4359.2,4359.0,3.2078]
[1756782260048,0.48620318,4359.1,4359.0,3.2078]
[1756782260241,0.67690318,4359.1,4359.0,3.2078]
[1756782260941,0.86900318,4359.1,4359.0,3.4578]
[1756782261442,0.86900318,4359.1,4359.0,44.2578]
[1756782261747,0.67690318,4359.1,4359.0,44.2578]
[1756782262737,0.67690318,4359.1,4359.0,44.0078]
[1756782262942,0.67690318,4359.1,4359.0,4.67238896]
[1756782263450,0.67690318,4359.1,4359.0,45.47238896]
[1756782263946,0.48620318,4359.1,4359.0,45.47238896]
[1756782264245,0.2949,4359.1,4359.0,44.2578]
[1756782264442,0.48612863,4359.1,4359.0,44.2578]
[1756782264638,0.48612863,4359.1,4359.0,44.0078]
[1756782264838,0.48614147,4359.1,4359.0,44.2578]
[1756782265548,0.48614147,4359.1,4359.0,41.05]
[1756782265943,0.48614147,4359.1,4359.0,40.8]
[1756782266148,0.8007,4359.0,4358.9,1.46455445]
[1756782266441,0.99194147,4359.0,4358.9,1.46455445]
[1756782266641,0.99194147,4359.0,4358.9,42.26455445]
[1756782266844,0.48614147,4359.0,4358.9,42.26455445]
[1756782267948,0.60914147,4359.0,4358.9,42.26455445]
[1756782268941,0.48614147,4359.0,4358.9,42.26455445]
[1756782270351,0.48614147,4359.0,4358.9,42.01455445]
[1756782270542,0.60914147,4359.0,4358.9,42.26455445]
[1756782270743,0.60914147,4359.0,4358.9,41.05]
[1756782270948,0.3828,4358.8,4358.7,1.21455445]
[1756782271149,0.6777,4358.8,4358.7,0.25]
[1756782272446,0.5058,4358.5,4358.4,1.21455445]
[1756782272647,0.5058,4358.5,4358.0,3.2078]
[1756782272648,0.2949,4358.4,4358.3,0.25]
[1756782272845,0.4856,4358.4,4358.3,0.25]
[1756782273048,0.6777,4358.4,4358.3,0.25]
[1756782273450,0.6777,4358.4,4358.2,40.8]
[1756782273451,0.3828,4358.4,4358.2,40.8]
[1756782273754,0.3828,4358.4,4358.3,0.25]
[1756782274054,0.6777,4358.4,4358.3,0.25]
[1756782274547,0.2949,4358.3,4358.2,40.8]
[1756782275253,0.8007,4358.0,4357.9,0.25]
[1756782275552,0.4856,4357.8,4357.7,1.21455445]
[1756782275753,0.6777,4357.8,4357.7,1.46455445]
[1756782276149,0.6777,4357.8,4357.7,41.05]
[1756782276642,0.123,4357.5,4357.1,1.2156226]
[1756782276847,0.2949,4357.1,4357.0,4.4234226]
[1756782277152,0.2949,4358.9,4357.9,0.41304]
[1756782277345,0.2949,4358.9,4358.5,1.21502207]
[1756782277544,0.4856,4358.8,4358.7,1.21502207]
[1756782277751,0.2949,4358.8,4358.7,1.46502207]
[1756782278049,0.4856,4359.4,4358.7,0.25]
[1756782278353,0.4856,4359.4,4358.8,1.21473367]
[1756782278555,0.123,4359.5,4358.8,1.21473367]
[1756782278755,0.4856,4359.0,4358.8,1.21473367]
[1756782278954,0.4856,4358.9,4358.8,1.21473367]
[1756782279156,0.4856,4358.9,4358.8,1.46473367]
[1756782279657,0.2949,4358.9,4358.8,1.46473367]
[1756782279957,0.2949,4358.9,4358.8,1.21473367]
[1756782280151,0.2949,4358.9,4358.8,4.67253367]
[1756782280552,0.4856,4358.9,4358.8,4.67253367]
[1756782281556,0.2949,4358.9,4358.8,4.67253367]
[1756782282454,0.6957,4358.9,4358.8,4.42253367]
[1756782282659,0.2873,4358.8,4358.6,1.21473367]
[1756782282956,0.2873,4358.9,4358.6,1.21473367]
[1756782283154,0.2873,4358.9,4358.6,1.46373367]
[1756782283554,0.2873,4358.9,4358.7,1.21473367]
[1756782283750,0.4811,4358.9,4358.8,40.8]
[1756782284452,0.4811,4358.9,4358.7,0.249]
[1756782284960,0.6881,4358.8,4358.6,42.01473367]
[1756782285257,0.2873,4358.7,4358.6,42.26373367]
[1756782286060,0.2873,4358.7,4358.6,41.049]
[1756782286355,0.2873,4358.7,4358.6,42.26432042]
[1756782286555,0.2873,4358.7,4358.6,42.01532042]
[1756782286759,0.2873,4358.7,4358.6,42.26432042]
[1756782286954,3.2078,4359.4,4358.6,42.26432042]
[1756782287253,0.1938,4359.2,4358.7,1.21532042]
[1756782287460,3.4016,4359.4,4358.8,0.249]
[1756782287651,0.2873,4359.1,4358.8,0.249]
[1756782287849,0.2873,4359.0,4358.8,0.249]
[1756782288158,0.4811,4358.9,4358.8,1.46432042]
[1756782288749,0.2873,4358.9,4358.8,1.46432042]
[1756782289359,17.7387035,4360.9,4358.8,3.4568]
[1756782289360,0.2873,4359.6,4358.8,3.4568]
[1756782289557,0.1938,4359.8,4359.3,4.42296346]
[1756782289759,0.4811,4359.9,4359.4,0.249]
[1756782290662,0.4811,4359.6,4359.5,0.249]
[1756782290861,0.6881,4359.6,4359.5,0.249]
[1756782291065,0.6881,4359.6,4359.3,4.42296346]
[1756782291265,0.2873,4359.4,4359.3,4.42296346]
[1756782291463,0.6881,4359.4,4359.3,0.249]
[1756782291758,0.4008,4359.4,4359.2,1.21516346]
[1756782291963,0.2873,4359.2,4358.8,4.82782943]
[1756782292263,0.2873,4359.2,4359.0,4.47419457]
[1756782292462,0.2873,4359.2,4359.1,0.249]
[1756782292764,0.6881,4359.2,4359.1,0.249]
[1756782293066,0.6881,4358.9,4358.8,3.2078]
[1756782293270,0.6881,4358.9,4358.8,3.4568]
[1756782293565,0.6881,4358.9,4358.8,3.2078]
[1756782293764,0.6881,4358.9,4358.8,3.4568]
[1756782294565,0.2873,4358.8,4358.7,1.21544468]
[1756782294764,0.6881,4358.8,4358.7,1.46444468]
[1756782295759,0.6881,4358.8,4358.7,1.21544468]
[1756782295960,0.2873,4358.7,4358.6,42.01544468]
[1756782296264,0.4811,4359.3,4358.6,4.06960982]
[1756782296468,0.4811,4359.1,4358.8,4.42324468]
[1756782296666,0.4811,4359.0,4358.9,0.249]
[1756782296966,0.2873,4359.0,4358.9,0.249]
[1756782297371,0.2873,4359.4,4358.9,0.249]
[1756782297561,0.2873,4359.4,4359.0,1.21497398]
[1756782297762,0.2873,4359.4,4359.3,1.21497398]
[1756782297962,0.2873,4359.4,4359.3,1.46397398]
[1756782298164,0.4811,4359.4,4359.3,4.67177398]
[1756782298468,0.6881,4359.4,4359.3,4.42277398]
[1756782298667,0.6881,4359.4,4359.3,3.4568]
[1756782299464,0.6881,4359.4,4359.3,3.2078]
[1756782300360,0.6881,4359.4,4359.3,3.4568]
[1756782300672,0.2873,4359.4,4359.3,3.4568]
[1756782301075,0.47377048,4359.4,4359.3,3.4568]
[1756782301272,0.47377048,4359.4,4359.0,1.21497398]
[1756782301273,0.6881,4359.3,4359.0,1.21497398]
[1756782301469,0.6881,4358.9,4358.8,1.21497398]
[1756782301773,0.87457048,4358.9,4358.8,1.46397398]
[1756782302167,0.47377048,4358.9,4358.8,1.46397398]
[1756782302362,0.47377048,4358.9,4358.8,0.249]
[1756782302570,0.18647048,4358.9,4358.8,0.249]
[1756782303372,0.47377048,4358.9,4358.8,0.249]
[1756782303766,0.66757048,4358.9,4358.8,0.249]
[1756782303973,0.2873,4358.8,4358.5,40.8]
[1756782304277,0.18647048,4358.7,4358.6,0.47842999]
[1756782304463,0.18647048,4358.7,4358.6,3.4568]
[1756782304664,0.47377048,4358.7,4358.6,3.4568]
[1756782304865,0.18647048,4358.7,4358.6,3.4568]
[1756782305170,0.2873,4358.7,4358.6,3.4568]
[1756782305368,0.47385558,4358.7,4358.6,3.4568]
[1756782305875,0.66765558,4358.7,4358.6,3.4568]
[1756782306965,0.87465558,4358.7,4358.6,3.4568]
[1756782307664,0.66765558,4358.7,4358.6,3.4568]
[1756782308173,0.66765558,4358.7,4358.6,3.2078]
[1756782308368,0.66765558,4358.7,4358.6,3.4568]
[1756782309471,0.66765558,4358.7,4358.6,3.2078]
[1756782309671,0.87465558,4358.7,4358.6,3.4568]
[1756782309975,0.66765558,4358.7,4358.6,3.4568]
[1756782310174,0.2873,4359.5,4358.6,8.09920999]
[1756782310370,0.18672208,4359.4,4359.3,4.83035659]
[1756782310568,0.18672208,4359.4,4359.3,3.4568]
[1756782310876,0.4811,4359.9,4359.3,3.4568]
[1756782311079,0.2051,4359.8,4359.5,1.6221696]
[1756782311275,0.2872,4359.7,4359.6,0.249]
[1756782311674,0.2872,4359.7,4359.6,41.049]
[1756782312579,0.2872,4359.7,4359.6,40.8]
[1756782312877,0.2872,4359.7,4359.6,41.049]
[1756782313284,0.2872,4360.4,4359.6,41.049]
[1756782313471,0.3281,4360.5,4359.9,1.21556017]
[1756782313676,0.2872,4360.4,4360.0,0.249]
[1756782313980,0.4923,4360.4,4360.0,0.249]
[1756782314377,0.2872,4360.3,4360.1,0.249]
[1756782314574,0.4923,4360.2,4360.1,0.249]
[1756782315686,0.4923,4360.2,4359.9,4.42336017]
[1756782315880,0.4923,4360.1,4360.0,0.249]
[1756782316083,0.6848,4360.1,4360.0,0.249]
[1756782316278,0.6848,4360.1,4359.9,4.42336017]
[1756782316478,0.2872,4360.0,4359.9,1.21556017]
[1756782316682,0.4923,4360.0,4359.9,1.46456017]
[1756782317788,0.799,4360.0,4359.9,1.46456017]
[1756782317976,0.799,4360.0,4359.9,3.4568]
[1756782318174,0.799,4360.0,4359.9,4.67286311]
[1756782319286,0.799,4360.0,4359.9,4.42386311]
[1756782319482,0.2872,4360.5,4359.9,4.67286311]
[1756782319687,0.2872,4360.5,4360.4,4.42386311]
[1756782319888,0.4923,4360.5,4360.4,3.4568]
[1756782320088,0.799,4360.5,4360.4,3.2078]
[1756782320290,0.799,4360.5,4360.4,0.249]
[1756782320485,0.1142,4362.0,4360.4,4.67286311]
[1756782320486,0.2872,4360.9,4360.4,4.67286311]
[1756782320788,0.2872,4360.9,4360.7,1.21490808]
[1756782320982,0.2872,4360.9,4360.8,0.249]
[1756782321181,0.2872,4360.9,4360.8,41.049]
[1756782321581,0.2872,4360.9,4360.8,40.8]
[1756782321790,0.2872,4360.9,4360.8,41.049]
[1756782321989,0.2872,4360.9,4360.8,40.8]
[1756782322289,0.2872,4360.9,4360.8,41.049]
[1756782322689,0.2872,4360.9,4360.8,40.8]
[1756782322989,0.2872,4360.9,4360.8,41.049]
[1756782324690,0.2872,4361.4,4360.8,41.049]
[1756782324889,3.2078,4361.7,4360.8,41.049]
[1756782324890,0.2872,4361.3,4361.0,1.21323561]
[1756782325089,0.2872,4361.2,4361.1,0.248]
[1756782325284,0.1142,4362.0,4361.1,0.248]
[1756782325485,0.2872,4361.7,4361.4,3.2078]
[1756782325685,0.2872,4361.6,4361.5,0.248]
[1756782325886,0.6848,4361.6,4361.5,0.248]
[1756782326592,0.799,4361.5,4361.4,3.2078]
[1756782326892,0.799,4361.5,4361.4,3.4558]
[1756782328987,0.799,4361.5,4361.4,3.2078]
[1756782329192,0.799,4361.5,4361.4,3.4558]
[1756782330892,0.799,4361.5,4361.4,3.2078]
[1756782331088,0.3193,4362.0,4361.4,3.2078]
[1756782331291,0.799,4361.5,4361.4,3.2078]
[1756782331494,0.6848,4360.9,4360.8,3.2078]
[1756782331696,0.6848,4360.9,4360.8,44.2558]
[1756782332287,0.6848,4360.9,4360.8,44.0078]
[1756782332492,0.6848,4360.9,4360.8,41.048]
[1756782332995,0.6848,4360.9,4360.8,40.8]
[1756782333195,0.6848,4360.9,4360.8,41.048]
[1756782333690,0.6848,4360.3,4360.2,1.21323561]
[1756782333892,0.1142,4360.0,4359.7,3.2078]
[1756782334192,0.2872,4359.6,4359.5,0.248]
[1756782334390,0.2872,4360.4,4359.5,3.53137478]
[1756782334594,0.1142,4361.0,4360.4,3.2078]
[1756782334794,3.2078,4361.7,4360.5,0.248]
[1756782335088,3.2078,4361.7,4360.6,40.8]
[1756782335290,0.2872,4360.7,4360.6,40.8]
[1756782335496,0.4923,4360.5,4360.4,3.2078]
[1756782335687,0.2872,4360.5,4360.4,3.4558]
[1756782335889,0.2872,4360.5,4360.4,44.2558]
[1756782336288,0.2872,4360.5,4360.4,44.0078]
[1756782336487,0.4014,4360.5,4360.4,41.048]
[1756782338001,0.4923,4360.0,4359.9,3.2078]
[1756782338205,0.4923,4360.0,4359.9,3.4558]
[1756782338500,0.4923,4360.0,4359.9,44.0078]
[1756782338800,0.4923,4360.0,4359.9,44.2558]
[1756782339502,0.4923,4360.0,4359.9,44.0078]
[1756782339799,0.4923,4360.0,4359.9,44.2558]
[1756782340297,0.2872,4360.0,4359.9,44.2558]
[1756782340696,0.2872,4359.9,4359.4,1.21323561]
[1756782340897,4.0068,4359.5,4359.4,1.21323561]
[1756782341200,0.3222,4359.0,4358.8,4.42103561]
[1756782341396,0.2919,4359.9,4359.1,0.248]
[1756782341601,0.1195,4361.0,4359.1,0.248]
[1756782341602,0.2919,4360.4,4359.5,3.2078]
[1756782341898,0.2919,4360.4,4359.6,41.048]
[1756782342898,0.2919,4360.4,4359.7,0.22936]
[1756782343095,0.2919,4360.9,4360.0,3.2078]
[1756782343299,0.2919,4360.9,4360.1,0.248]
[1756782343496,0.4946,4360.1,4360.0,3.2078]
[1756782343694,0.6967,4360.1,4360.0,3.4558]
[1756782343897,0.6967,4360.1,4360.0,0.248]
[1756782344099,0.2919,4360.0,4359.6,40.8]
[1756782344292,0.4946,4359.7,4359.6,40.8]
[1756782344701,0.4946,4359.7,4359.6,41.048]
[1756782345102,0.4946,4359.7,4359.6,40.8]
[1756782345401,0.2919,4360.4,4359.6,44.2558]
[1756782346103,0.1195,4360.5,4359.6,44.2558]
[1756782346405,0.1195,4360.5,4359.6,44.0078]
[1756782346704,0.4946,4359.8,4359.7,0.248]
[1756782347406,0.2919,4359.8,4359.7,0.248]
[1756782348104,0.4946,4359.8,4359.7,0.248]
[1756782348402,0.2919,4359.8,4359.7,0.248]
[1756782348902,0.2919,4360.4,4359.7,0.248]
[1756782349394,0.2919,4360.9,4360.2,4.42293308]
[1756782349598,0.2919,4360.9,4360.3,0.248]
[1756782349898,0.2919,4361.7,4360.8,3.2078]
[1756782350107,3.2078,4362.4,4361.6,3.2078]
[1756782350306,0.2919,4362.3,4361.7,41.048]
[1756782350605,0.2919,4362.4,4361.7,41.048]
[1756782350803,0.2919,4363.0,4362.3,6.49117478]
[1756782351004,0.2919,4363.0,4362.8,3.2078]
[1756782351205,0.2919,4363.4,4362.9,0.248]
[1756782351401,0.2919,4363.4,4363.0,40.8]
[1756782352002,0.1195,4363.5,4363.0,40.8]
[1756782352209,0.2919,4363.4,4363.0,40.8]
[1756782353204,0.1195,4363.5,4363.0,40.8]
[1756782353804,0.2919,4363.4,4363.0,40.8]
[1756782354107,0.2919,4363.4,4363.0,0.248]
[1756782354508,0.2919,4362.9,4362.8,0.248]
[1756782355803,0.4946,4362.9,4362.8,0.248]
[1756782356110,0.4946,4362.9,4362.3,40.8]
[1756782356111,0.2027,4362.9,4362.3,40.8]
[1756782356404,0.2919,4362.7,4362.4,0.248]
[1756782356608,0.2919,4362.9,4362.4,0.248]
[1756782356909,0.1195,4363.0,4362.4,0.248]
[1756782357110,0.2919,4362.9,4362.4,0.248]
[1756782357310,0.1195,4363.0,4362.4,0.248]
[1756782357608,0.2919,4362.9,4362.4,0.248]
[1756782357805,0.1195,4363.0,4362.4,0.248]
[1756782358006,0.2919,4362.9,4362.4,0.248]
[1756782358408,0.2919,4362.9,4362.5,0.248]
[1756782358602,0.2919,4362.9,4362.3,40.8]
[1756782358603,0.2027,4362.7,4362.6,0.248]
[1756782358804,0.6967,4362.7,4362.6,0.248]
[1756782359105,0.4048,4362.7,4362.6,0.248]
[1756782359403,0.4946,4362.1,4362.0,0.248]
[1756782359806,0.4946,4362.1,4362.0,41.048]